Cogmind - Beta 15 @@@ ROGUE MODE // 2025.08.19 @ 02:12:25 Player: SnailSD Result: Destroyed by D-53 Grenadier with Mini Grenade Launcher Performance ------------- Evolutions (0) 0 Regions Visited (2) 400 Robots Destroyed (33) 165 Value Destroyed (691) 691 Prototype IDs (1) 20 Alien Tech Used (0) 0 Bonus (0) 0 TOTAL SCORE: 1276 Bonus ------- None Cogmind --------- Core Integrity 0/250 Matter 300/300 Energy 98/100 System Corruption 0% Temperature Cool (0) Movement Core (50) Location -10/Mines Parts ------- > --- POWER (1) -------- (None) > --- PROPULSION (2) --- (None) > --- UTILITY (2) ------ (None) > --- WEAPON (2) ------- (None) > --- INVENTORY (5) ---- Ion Engine Light Treads Improved Flight Unit Large Storage Unit Medium Laser Peak State ------------ > --- POWER ------------ Ion Engine > --- PROPULSION ------- Light Treads Improved Flight Unit > --- UTILITY ---------- Large Storage Unit Medium Armor Plating > --- WEAPON ----------- Medium Laser Medium Laser > --- INVENTORY -------- Ion Engine Light Nuclear Core Light Treads Aluminum Leg Heat Sink Improved Heat Sink Large Storage Unit High-capacity Storage Unit Seismic Detector Targeting Computer Medium Armor Plating Medium Armor Plating Medium Laser Grenade Launcher Hammer [Rating: 12] Favorites ----------- Power Ion Engine Engine Ion Engine Propulsion Light Treads Treads Light Treads Leg Aluminum Leg Flight Unit Improved Flight Unit Utility Medium Armor Plating Device Seismic Detector Storage Large Storage Unit Protection Medium Armor Plating Weapon Medium Laser Energy Gun Medium Laser Ballistic Gun Assault Rifle Impact Weapon Hammer Build | -11 -10 -10 ------- Run | Yrd Mat Min Slots Evolved . | . . . Power . | . . . Propulsion . | . . . Utility . | . . . Weapon . | . . . Parts Attached 20 | 7 12 1 Power 1 | 1 . . Engine 1 | 1 . . Core . | . . . Reactor . | . . . Propulsion 7 | 2 5 . Treads 4 | 2 2 . Leg 2 | . 2 . Wheel . | . . . Hover . | . . . Flight 1 | . 1 . Utility 6 | 2 3 1 Device 1 | 1 . . Storage 3 | 1 2 . Processor . | . . . Hackware . | . . . Protection 2 | . 1 1 Artifact . | . . . Weapon 6 | 2 4 . Energy Gun 4 | 1 3 . Energy Cannon . | . . . Ballistic Gun 1 | 1 . . Ballistic Cannon . | . . . Launcher . | . . . Special Weapon . | . . . Impact Weapon 1 | . 1 . Slashing Weapon . | . . . Piercing Weapon . | . . . Special Melee Weapon . | . . . Unidentified Prototypes 1 | . 1 . Parts Lost 8 | . 3 5 Power 1 | . . 1 Propulsion 1 | . 1 . Utility 2 | . . 2 Weapon 4 | . 2 2 Highest Loss Streak 4 | . 2 4 To Critical Strikes . | . . . Average Backups 14 | 5 15 19 Power 2 | 1 2 2 Propulsion 4 | 3 3 7 Utility 6 | . 6 7 Weapon 2 | . 2 3 Tool/Special . | . . . Unused Backups 20 | . 5 15 Power 5 | . 2 3 Propulsion 7 | . 2 5 Utility 6 | . 1 5 Weapon 2 | . . 2 Tool/Special . | . . . Average Slot Usage (%) 99 | . 99 98 Engine 13 | . 14 13 Treads 27 | . 27 28 Device 4 | . 5 . Storage 14 | . 14 14 Protection 9 | . 8 13 Energy Gun 23 | . 22 27 Ballistic Gun 4 | . 4 . Peak Build Rating 12 | 7 12 11 Average Rating 9 | 6 9 10 On Entrance 6 | . 7 11 Naked Turns 4 | . . 4 Heaviest Build 56 | 15 56 56 Greatest Support 40 | 40 40 40 Greatest Overweight (x) 2 | 1 2 1 Average Overweight (x) . | . . . Largest Inventory Capacity 20 | 8 20 20 Average Capacity 15 | 7 15 19 Most Carried 20 | 8 20 20 Average Carried 14 | 5 15 19 Final Capacity 20 | 8 20 5 Final Carried 20 | 8 20 5 Class Distribution -------------------- 100% | Mutant Dominant Class ---------------- Mutant | -10/Materials Mutant | -10/Mines Resources | -11 -10 -10 ----------- Run | Yrd Mat Min Matter Collected 574 | 309 240 25 Remotely . | . . . Salvage Created 1122 | 164 859 99 Parts 69 | 11 56 2 Haulers Intercepted 2 | . 2 . Recyclers Shooed 1 | . 1 . Parts Field Recycled . | . . . Retrieved Matter . | . . . Parts Self-Destructed . | . . . Prevented . | . . . Kills | -11 -10 -10 ------- Run | Yrd Mat Min Combat Hostiles Destroyed 18 | . 16 2 Guns 17 | . 16 1 Classes Destroyed 8 | 2 6 . Worker 3 | . 3 . Tunneler 5 | 4 1 . Hauler 2 | . 2 . Recycler 1 | 1 . . Operator 3 | . 3 . Watcher 1 | . 1 . Swarmer 3 | . 3 . Grunt 15 | . 13 2 Best Kill Streak 5 | 1 5 2 Combat Bots Only 5 | . 5 2 Max Kills in Single Turn 1 | 1 1 1 Gunslinging . | . . . Exploded . | . . . Melee . | . . . Uniques/NPCs Destroyed . | . . . Combat | -11 -10 -10 -------- Run | Yrd Mat Min Hostile Shots Fired 120 | . 93 27 Missed 23 | . 20 3 Hits 97 | . 73 24 Projectile 97 | . 73 24 AOE 15 | . . 15 Damage Taken 1429 | . 772 657 Core 250 | . 101 149 Absorbed by Shields . | . . . Regen/Repaired (Parts) 139 | . 139 . Core Remaining (%) 100 | 100 . . Volleys Fired 120 | 13 100 7 Largest 2 | 2 2 2 Hottest 100 | 60 100 100 Shots Fired 204 | 26 164 14 Gun 204 | 26 164 14 Cannon . | . . . Launcher . | . . . Special . | . . . Kinetic 53 | 13 40 . Thermal 102 | . 88 14 Explosive . | . . . Electromagnetic 49 | 13 36 . Robot Hit Streak 8 | 5 8 6 Robot Miss Streak 7 | 3 7 1 Penetration Max . | . . . Secondary Targets 2 | . 1 1 Max Gunslinging Chain 1 | . 1 1 Shots Hit Robots 126 | 18 96 12 Core Hits 53 | 6 43 4 Critical Kills . | . . . Critical Parts Destroyed . | . . . Critical Strikes 9 | . 7 2 Burn 9 | . 7 2 Melee Attacks 1 | . 1 . Impact 1 | . 1 . Slashing . | . . . Piercing . | . . . Sneak Attacks . | . . . Combat Hostiles . | . . . Follow-up Attacks . | . . . Damage Inflicted 1761 | 303 1308 150 Guns 1661 | 241 1270 150 Cannons . | . . . Explosions 91 | 62 29 . Melee . | . . . Ramming 9 | . 9 . Kinetic 370 | 132 238 . Thermal 958 | 62 746 150 Explosive . | . . . Electromagnetic 424 | 109 315 . Impact . | . . . Slashing . | . . . Piercing . | . . . Highest Corruption . | . . . Average Corruption . | . . . Corruption Purged . | . . . Corruption Blocked . | . . . Overload Shots . | . . . Overflow Damage 3 | 1 2 . Projectiles . | . . . Explosions 3 | 1 2 . Melee . | . . . Knockbacks . | . . . Impact . | . . . Kinetic . | . . . Secondary . | . . . Self-Inflicted Damage 21 | . 21 . Shots 1 | . 1 . Rammed 1 | . 1 . Targets Rammed 1 | . 1 . Kicked . | . . . Crushed . | . . . Highest Temperature 375 | . 318 375 Average Temperature 83 | . 68 194 Received Heat Transfer 390 | . 327 63 Effects 6 | . 5 1 Energy Bleed 1 | . 1 . Interference 4 | . 4 . Damage (minor) 1 | . . 1 Siege Activations . | . . . Martial Activations . | . . . Shielding Activations . | . . . Robots Disrupted . | . . . Combat Hostiles . | . . . Robots Corrupted . | . . . Combat Hostiles . | . . . Parts Fried . | . . . Impact Corruptions . | . . . Robots Melted 1 | . . 1 Combat Hostiles 1 | . . 1 Parts Melted 5 | . 3 2 Heat Transferred 3311 | 100 2619 592 Parts Sabotaged . | . . . Parts Stolen . | . . . Parts Stripped . | . . . Power Chain Reactions 2 | 1 1 . Alert | -11 -10 -10 ------- Run | Yrd Mat Min Maximum Alert Level . | . . . Low Security (%) 100 | 100 100 100 Level 1 . | . . . Level 2 . | . . . Level 3 . | . . . Level 4 . | . . . Level 5 . | . . . High Security . | . . . Max Security . | . . . Peak Influence 100 | 5 100 50 Initial . | . . . Average 21 | . 27 6 Influence Increases 524 | 25 449 50 Destroy 0b10 Robot/C 360 | . 320 40 Destroy 0b10 Robot/NC 75 | 25 50 . Destroy Leader 86 | . 76 10 Destroy Structure 3 | . 3 . Influence Decreases 524 | 25 449 50 Time Decay 504 | 25 429 50 Lost Part 20 | . 20 . Squads Dispatched 4 | . 4 . Investigation 1 | . 1 . Extermination . | . . . Reinforcement 3 | . 3 . Assault . | . . . Garrison . | . . . Intercept . | . . . Searches Triggered . | . . . Construction Impeded . | . . . Haulers Reinforced . | . . . Active Scanning Responses . | . . . Cargo Convoy Interrupts . | . . . Stealth | -11 -10 -10 --------- Run | Yrd Mat Min Distress Signals 1 | . 1 . Communications Jammed . | . . . Distress Signals . | . . . Times Spotted 43 | . 39 4 Peak Tracking Total 8 | . 8 2 Tactical Retreats . | . . . Traps | -11 -10 -10 ------- Run | Yrd Mat Min Traps Triggered 1 | . 1 . Indirectly . | . . . Trap Hack Attempts . | . . . Triggered . | . . . Disarmed . | . . . Reprogrammed . | . . . Reused . | . . . Traps Extracted . | . . . Installed . | . . . Triggered . | . . . Machines | -11 -10 -10 ---------- Run | Yrd Mat Min Machines Disabled . | . . . Max in Single Turn . | . . . Machines Repaired . | . . . Machines Dismantled . | . . . Machines Sabotaged . | . . . Overloaded Fab Kills . | . . . Hacking | -11 -10 -10 --------- Run | Yrd Mat Min Machines Accessed 8 | . 7 1 Terminals 5 | . 5 . Fabricators . | . . . Repair Stations 1 | . 1 . Recycling Units 1 | . 1 . Scanalyzers . | . . . Garrison Access . | . . . Total Hacks 16 | . 15 1 Successful 6 | . 5 1 Failed 10 | . 10 . Catastrophic 3 | . 3 . Database Lockouts . | . . . Manual 8 | . 8 . Terminals 10 | . 10 . Fabricators . | . . . Repair Stations 3 | . 3 . Recycling Units 2 | . 2 . Scanalyzers . | . . . Garrison Access . | . . . Terminal Hacks 2 | . 1 1 Robot Analysis 1 | . 1 . Open Door 1 | . . 1 Fabricator Hacks . | . . . Repair Station Hacks 2 | . 2 . Scan Component 1 | . 1 . Repair 1 | . 1 . Recycling Unit Hacks 1 | . 1 . Report Inventory 1 | . 1 . Scanalyzer . | . . . Garrison Access Hacks . | . . . Unauthorized Hacks 1 | . 1 . Terminals 1 | . 1 . Operators 1 | . 1 . Fabricators . | . . . Repair Stations . | . . . Recycling Units . | . . . Scanalyzers . | . . . Garrison Access . | . . . Data Cores Recovered . | . . . Used . | . . . Hacking Detections 5 | . 5 . Full Trace Events 1 | . 1 . Feedback Events . | . . . Feedback Blocked . | . . . Robot Schematics Acquired . | . . . Robots Built . | . . . Authchips . | . . . Time . | . . . Total Robot Build Rating . | . . . Part Schematics Acquired . | . . . Parts Built . | . . . Authchips . | . . . Time . | . . . Total Part Build Rating . | . . . Parts Repaired 1 | . 1 . Time 26 | . 26 . Parts Recycled . | . . . Recycled Matter . | . . . Retrieved Matter . | . . . Retrieved Components . | . . . Parts Scanalyzed . | . . . Part Schematics Acquired . | . . . Parts Damaged . | . . . Bothacking | -11 -10 -10 ------------ Run | Yrd Mat Min Used RIF Installer . | . . . Robots Hacked . | . . . Non-combat . | . . . Combat . | . . . Robot Hacks Applied . | . . . Relay Couplers Released . | . . . Fabnet Peak Effective % . | . . . Robots Rewired . | . . . Allies Hacked . | . . . Hacks Repelled . | . . . Allies | -11 -10 -10 -------- Run | Yrd Mat Min Total Allies . | . . . Largest Group . | . . . Highest-Rated Group . | . . . Highest-Rated Ally . | . . . Total Orders . | . . . Ally Attacks . | . . . Total Damage . | . . . Kills . | . . . Allies Corrupted . | . . . Allies Melted . | . . . Intel | -11 -10 -10 ------- Run | Yrd Mat Min Active Infowar (turns) 896 | 164 732 . Seismic 896 | 164 732 . Robot Analysis Total 1 | . 1 . Derelict Logs Recovered . | . . . Drone Launches . | . . . Drone Recoveries . | . . . Exploration | -11 -10 -10 ------------- Run | Yrd Mat Min Turns Passed 2567 | 255 1908 404 Spaces Moved 1102 | 129 815 158 Core 17 | 9 . 8 Treads 1075 | 120 805 150 Legs 10 | . 10 . Wheels . | . . . Hover . | . . . Flight . | . . . Fastest Speed 50 | 50 160 50 Average Speed 189 | 153 186 230 Slowest Speed 320 | 160 320 240 Overloaded Moves . | . . . Propulsion Burnouts . | . . . Robots Hopped . | . . . Potential Cave-ins . | . . . Cave-ins Triggered . | . . . Exploration Rate (%) 46 | 8 95 37 Regions Visited 2 Branch Regions 1 Pre-discovered Areas 1 | . . 1 Known Exits Taken . | . . . Unknown Exits Taken 2 | 1 1 . Scrap Searched 1 | . . 1 Spaces Dug 1 | . 1 . Terrain Destroyed 8 | 5 3 . Melee 1 | . 1 . Projectile . | . . . AOE 7 | 5 2 . Terrain Rammed . | . . . Walls Destroyed . | . . . Machines Disabled . | . . . Actions | -11 -10 -10 --------- Run | Yrd Mat Min Total 1377 | 156 1037 184 Wait 88 | . 71 17 Move 1100 | 128 814 158 Hop . | . . . Pick Up 31 | 8 22 1 Fast Attach 12 | 7 5 . Attach 4 | . 3 1 Detach 1 | . 1 . Swap 7 | . 7 . Drop 12 | . 12 . Fire 120 | 13 100 7 Melee 1 | . 1 . Ram . | . . . Kick . | . . . Crush 1 | . 1 . Escape Stasis . | . . . Rewire . | . . . Trap . | . . . Miscellaneous . | . . . Route ------- -11/Scrapyard -10/Materials (discovered 5 exits: [*Mat x3] / *Min x2) -10/Mines (discovered 1 exit: [*Mat]) History --------- Turn | Location | Event 2 | -11/Scrapyard | Met Revision 17 34 | -11/Scrapyard | Discovered new exit (range 15) 256 | -11/Scrapyard | Entered Materials 309 | -10/Materials | Build established: Mutant 619 | -10/Materials | Discovered new exit (range 15) 1077 | -10/Materials | Discovered new exit (range 15) 1292 | -10/Materials | Discovered new exit (range 16) 1520 | -10/Materials | Discovered new exit (range 15) 1627 | -10/Materials | Repaired Lgt. Treads? 2069 | -10/Materials | Discovered new exit (range 5) 2164 | -10/Materials | Entered Mines 2339 | -10/Mines | Discovered new exit (range 6) 2340 | -10/Mines | Learned location of Storage (-9) 2472 | -10/Mines | Found the Drone Emporium 2539 | -10/Mines | Assembled infested the area 2544 | -10/Mines | Assisted by a Guerilla fighting off Assembled 2562 | -10/Mines | Core integrity fell below 50% 2564 | -10/Mines | Released all parts (3) 2566 | -10/Mines | Core integrity fell below 20% 2568 | -10/Mines | Destroyed by D-53 Grenadier with Mini Grenade Launcher Last Messages --------------- opened my Drone Emporium yet but am totally ready to tell them where they can shove that C&D." 02474_ GN-TR3(g): "I'm a fan of the free market. Free drones for all! No strings attached!" 02539_ ALERT: Infestation in the mines, dispatching Demolisher response squad. 02552_ C-30 ARC bursts open, deploying its payload. 02552_ D-53 Grenadier unfolds itself. 02552_ Med. Laser destroyed. 02552_ U-05 Engineer destroyed. 02556_ Ion Engine destroyed. 02559_ Med. Laser destroyed. 02562_ The unstable cave ceiling collapses. 02563_ Med. Armor Plating destroyed. 02564_ The unstable cave ceiling collapses. 02564_ Released Lgt. Treads. 02564_ Released Hcp. Storage Unit. 02564_ Released Lgt. Treads. Map ----- +----------------------------------------------------+ | | | | | | | | | | | | | | | | | | | | | ?????????????????????????????????????????????????? | | ?????####????????????????????????????????????????? | | ????## #######??????????????????????????????????? | | ????# ##?####????????????????????????????? | | ????# ### ##???????????????????????????? | | ?????# #???????????????????????????? | | ????## ##??????????????????????????? | | ????# ##?????????????????????????? | | ???## # =] ##????????????????????????? | | ??## # = *! #????????????????????????? | | #?# =! ! ##???????????????????????? | | "## =!/=* ###?????????????????????? | | #X #?????????????????????? | | ## #?????????????????????? | | #### d ###????????????????????? | | # # ##?### d @ #????????????????????? | | "## # #??# % #????????????????????? | | #?### #?# ## #????????????????????? | | ????# ## ### # ### #????????????????????? | | ????# ## #?# ######?# #????????????????????? | | ????# ### #?# #??????# #????????????????????? | | ????# ###?# #?# ??????# ????????????????????? | | ????## ##???# #?###??????###????????????????????? | | ?????####????# #?????????????????????????????????? | | ????????###### ##????????????????????????????????? | | ??????### #????????????????????????????????? | | ???#### #????????????????????????????????? | | ??## ## #????????????????????????????????? | | ??# < ### #????????????????????????????????? | | ??## #?# #????????????????????????????????? | | ???##### ##?# #????????????????????????????????? | | ???????####??# #??###???????????????????????????? | | ?????????????# ### ##??????????????????????????? | | ?????????????# ##?????????????????????????? | | ?????????????# ######????????????????????? | | ?????????????# ##???????????????????? | | ?????????????# ##??????????????????? | | ????????????## ???????????????? | | ????????????# % #????????????????????? | | ????????????# % ## #????????????????????? | +----------------------------------------------------+ Best States ------------- Heat Dissipation 25 Energy Generation 10 Energy Capacity 250 Matter Stores 300 Matter Capacity 300 Sight Range 16 Terrain Scan Density 10 Armor Coverage 225 Evasion (%) 40 Recoil Reduction 2 Item Schematics ----------------- None Robot Schematics ------------------ None Fabricated ------------ Nothing Repaired ---------- Lgt. Treads | 1% | -10/Materials Alien Tech Used ----------------- None Achievements -------------- None Challenges ------------ None Game ------ Seed WaveWaveTerrabomb Manual? 0 Play Time 00:16:25 Cumulative 27.6 hours Start 2025.08.19 @ 01:57:49 End 2025.08.19 @ 02:12:25 Sessions 1 Manual Loads 0 Difficulty Rogue Special Mode None Game No. 48 Rogue 48 Adventurer 0 Explorer 0 Win Type - Total 0 Types 0/0/0/0/0/0/0/0/0/0 Lore% 32 Gallery% 30 Achievement% 28 Wizard Run 0 Options --------- Layout 1 ASCII 0 Keyboard 0 Movement Numpad Keybinds 0 Fullscreen 1 Font 24/Smallcaps Map View 50x35 Zoom Use 0% Tactical HUD 1 Map Filters NONE Filters NONE Steam 1 RUN: 2bd42e57-3862-4a7e-be85-e1147d958a8b